fUSD/lending_fUSD_20240327
["ID","MTS","AMOUNT","RATE_DAILY","PERIOD"]
[320699328,1711509038694,-150.0,0.00048879,30]
[320699329,1711509038705,-1076671.0260457,0.0004888,2]
[320699330,1711509039054,-5087.9448896,0.0004888,2]
[320699331,1711509039068,-5017.68,0.0004888,2]
[320699332,1711509039080,-7959.82,0.0004888,2]
[320699333,1711509039092,-1763.55199857,0.0004888,2]
[320699334,1711509039104,-541295.21432294,0.0004888,2]
[320699335,1711509039116,-1555676.63378391,0.0004888,2]
[320699336,1711509039130,-30294.33119393,0.0004888,2]
[320699337,1711509039147,-512.307232,0.0004888,2]
[320699338,1711509039159,-25306.64252036,0.0004888,2]
[320699339,1711509039168,-390.01,0.000489,7]
[320699340,1711509039177,-158.43178342,0.00049069,30]
[320699341,1711509039187,-151.032711,0.00049498,102]
[320699342,1711509039197,-1001.0,0.000496,2]
[320699343,1711509039207,-351.28026117,0.0005,30]
[320699344,1711509039217,-3949.05837704,0.0005,30]
[320699351,1711509040414,-317.46885953,0.0004599,2]
[320699352,1711509040424,-962.22379617,0.0005,30]
[320699353,1711509040437,-88.71782679,0.0005,30]
[320699354,1711509040447,-501.14332407,0.0005,2]
[320699355,1711509040457,-475.17789914,0.00050008,2]
[320699356,1711509040587,-783.25753,0.00050008,2]
[320699376,1711509043325,-1670.32253957,0.00050008,2]
[320699377,1711509043335,-151.0,0.00050123,2]
[320699378,1711509043345,-1052.95559883,0.00050409,27]
[320699379,1711509043512,-2357.86228731,0.00050409,27]
[320699380,1711509043521,-151.032711,0.00050498,103]
[320699381,1711509043532,-675.02798958,0.000509,120]
[320699382,1711509043541,-675.02798948,0.000509,120]
[320699383,1711509043550,-653.90830288,0.000509,120]
[320699384,1711509043562,-21.1196866,0.000509,120]
[320699385,1711509043571,-675.02798948,0.000509,120]
[320699386,1711509043580,-675.02798948,0.000509,120]
[320699387,1711509043589,-40.90952005,0.000509,120]
[320699388,1711509043724,-634.11846943,0.000509,120]
[320699389,1711509043733,-675.02798948,0.000509,120]
[320699390,1711509043742,-675.02798948,0.000509,120]
[320699391,1711509043752,-107.794374,0.000509,120]
[320699412,1711509046470,-317.46885953,0.00049408,2]
[320699413,1711509046481,-425.77114047,0.000509,120]
[320699414,1711509046593,-141.46247501,0.000509,120]
[320699415,1711509046602,-675.02798948,0.000509,120]
[320699416,1711509046612,-675.02798948,0.000509,120]
[320699417,1711509046621,-675.02798948,0.000509,120]
[320699418,1711509046630,-675.02798948,0.000509,120]
[320699419,1711509046639,-675.02798948,0.000509,120]
[320699420,1711509046649,-675.02798948,0.000509,120]
[320699421,1711509046658,-675.02798948,0.000509,120]
[320699422,1711509046667,-675.02798948,0.000509,120]
[320699423,1711509046676,-675.02798948,0.000509,120]
[320699424,1711509046686,-675.02798948,0.000509,120]
[320699425,1711509046695,-675.02798948,0.000509,120]
[320699426,1711509046704,-102.88536179,0.00050918,2]
[320699427,1711509046761,-114.62463821,0.00050918,2]
[320699428,1711509046770,-302.0,0.00050965,4]
[320699429,1711509046779,-785.16799244,0.0005111,14]
[320699430,1711509046789,-1000.0,0.0005146,120]
[320699431,1711509046798,-151.032711,0.00051498,104]
[320699432,1711509046807,-188.61,0.00051544,120]
[320699433,1711509046816,-326.75083577,0.00051822,7]
[320699438,1711510027174,-155.0,0.00024999,3]
[320699439,1711510027194,-155.0,0.00024999,2]
[320699440,1711510027213,-350.0,0.00025,3]
[320699441,1711510027232,-1429.16042548,0.00045998,4]
[320699442,1711510027253,-169.47,0.00048287,2]
[320699443,1711510027272,-178.46931499,0.00049193,2]
[320699444,1711510027292,-164.39881783,0.00049314,30]
[320699445,1711510027311,-190.6268655,0.0004968,120]
[320699446,1711510027329,-399.0,0.0005,9]
[320699447,1711510027348,-250.0,0.00050035,120]
[320699448,1711510027368,-400.0,0.00050042,120]
[320699449,1711510027388,-120.94754739,0.00050093,2]
[320699450,1711510041096,-425.866066,0.00049842,5]
[320699451,1711510041116,-79.05245261,0.00050093,2]
[320699452,1711510041136,-250.0,0.00050242,110]
[320699453,1711510041156,-299.30164072,0.00050326,2]
[320699458,1711510231440,-250.0,0.0005,120]
[320699459,1711510231451,-259.1,0.00050243,2]
[320699460,1711510231461,-155.0,0.00050323,4]
[320699461,1711510231471,-95.33780553,0.00050324,4]
[320699462,1711510231503,-570.09,0.00050324,4]
[320699463,1711510231625,-341.67865772,0.00050324,4]
[320699464,1711510231635,-1813.87835928,0.00050326,2]
[320699465,1711510231645,-153.95,0.00050381,120]
[320699466,1711510231655,-581.82,0.00050413,2]
[320699467,1711510231666,-167.032712,0.00050498,102]
[320699468,1711510231675,-250.0,0.000505,120]
[320699469,1711510231685,-169.47,0.0005055,2]
[320699470,1711510231695,-156.81,0.00050682,120]
[320699471,1711510231704,-600.0,0.0005075,120]
[320699472,1711510231714,-268.19,0.00050844,120]
[320699473,1711510231724,-150.99,0.00050844,2]
[320699474,1711510231734,-150.99,0.00050844,10]
[320699475,1711510231743,-499.99,0.00050844,2]
[320699476,1711510231753,-155.49963751,0.00050898,4]
[320699477,1711510231763,-802.62151196,0.00050899,2]
[320699478,1711510231773,-156.11169516,0.00050998,4]
[320699479,1711510231783,-1250.69578434,0.00051,120]
[320699480,1711510231793,-103293.19133451,0.00051,7]
[320699481,1711510231802,-250.0,0.00051,120]
[320699482,1711510231811,-150.0,0.00051012,2]
[320699483,1711510231821,-1951.38688,0.0005103,54]
[320699484,1711510231830,-150.0,0.00051066,2]
[320699485,1711510231840,-164.89387134,0.00051444,2]
[320699486,1711510231850,-151.032712,0.00051498,103]
[320699487,1711510231858,-2071.08,0.000515,120]
[320699488,1711510231869,-32468.32685521,0.000515,120]
[320699489,1711510231878,-250.0,0.000515,120]
[320699490,1711510231887,-1129.4283,0.00051798,2]
[320699491,1711510231896,-210.7926606,0.00051798,23]
[320699492,1711510231906,-965.13297051,0.00051822,4]
[320699493,1711510231915,-304.14856134,0.00051822,30]
[320699494,1711510231924,-274977.49674341,0.00051898,2]
[320699495,1711510231933,-56856.2411,0.00051899,2]
[320699496,1711510231943,-460.522,0.00051899,2]
[320699498,1711510231952,-811.4893,0.00051899,2]
[320699499,1711510231963,-3558.32614381,0.000519,29]
[320699501,1711510231972,-170.17,0.00051971,2]
[320699503,1711510231981,-2269.96108623,0.00051995,4]
[320699505,1711510231990,-535.56414307,0.00051995,4]
[320699507,1711510231999,-3603.943569,0.00051996,4]
[320699509,1711510232009,-689.52406942,0.00051997,4]
[320699510,1711510232018,-212.5314954,0.00051997,4]
[320699511,1711510232027,-200.57174486,0.00051997,4]
[320699512,1711510232037,-539.37741409,0.00051997,4]
[320699513,1711510232046,-160.64928794,0.00051997,4]
[320699514,1711510232056,-35119.3289958,0.00051997,4]
[320699515,1711510232066,-155.49004003,0.00051997,4]
[320699516,1711510232075,-292.29867857,0.00051997,30]
[320699517,1711510232087,-4518.53553044,0.00051997,4]
[320699518,1711510232096,-257.52549917,0.00051997,4]
[320699519,1711510232107,-235.73728237,0.00051997,4]
[320699520,1711510232119,-1912.90635922,0.00051997,4]
[320699521,1711510232129,-204.96650003,0.00051997,4]
[320699522,1711510232139,-1008.21336429,0.00051997,2]
[320699523,1711510232150,-5000.0,0.00051997,30]
[320699524,1711510232160,-290.44079092,0.00051998,4]
[320699525,1711510232169,-469.74475734,0.00051998,4]
[320699526,1711510232179,-923.19189521,0.00051998,4]
[320699527,1711510232188,-1059.53219874,0.00051998,4]
[320699528,1711510232198,-156.50632644,0.00051998,4]
[320699529,1711510232207,-2090.25961763,0.00051998,4]
[320699530,1711510232216,-275851.15631205,0.00051999,4]
[320699531,1711510232229,-488.40987031,0.00051999,4]
[320699532,1711510232241,-3056.59561292,0.00051999,4]
[320699533,1711510232253,-1463.65804085,0.00051999,4]
[320699534,1711510232266,-309.28118103,0.00051999,4]
[320699535,1711510232278,-689.96444878,0.00051999,4]
[320699536,1711510232291,-1538.58431788,0.00051999,4]
[320699537,1711510232302,-1250.98806938,0.00051999,4]
[320699538,1711510232314,-808.96171269,0.00051999,4]
[320699540,1711510237604,-155.0,0.00049999,4]
[320699541,1711510237618,-3273.37743969,0.00051999,4]
[320699542,1711510237630,-7056.5,0.00051999,4]
[320699543,1711510237665,-1000.51593,0.00051999,4]
[320699544,1711510237678,-3680.0527673,0.00051999,4]
[320699545,1711510237891,-1029.27,0.00051999,4]
[320699549,1711510239502,-1974.77509319,0.00051999,4]
[320699550,1711510239560,-1705.73799334,0.00051999,4]
[320699551,1711510239573,-688.60618016,0.00051999,4]
[320699565,1711510242636,-628.18,0.00051999,4]
[320699566,1711510242694,-575.13749975,0.00051999,4]
[320699567,1711510242708,-5282.88293224,0.00051999,4]
[320699568,1711510242917,-1102.13902305,0.00051999,4]
[320699605,1711510245632,-1885.35796058,0.00051999,4]
[320699607,1711510245644,-831.83615779,0.00051999,4]
[320699609,1711510245656,-1531.66,0.00051999,4]
[320699611,1711510245667,-1961.05,0.00051999,4]
[320699614,1711510245690,-627.44,0.00051999,4]
[320699627,1711510245810,-29401.7310997,0.00051999,4]
[320699630,1711510245821,-856.15757375,0.00051999,4]
[320699631,1711510245869,-897.0126949,0.00051999,4]
[320699632,1711510246092,-506.79751962,0.00051999,4]
[320699633,1711510246105,-6671.84275276,0.00051999,4]
[320699634,1711510246155,-471.44089317,0.00051999,4]
[320699635,1711510246169,-1378.95467315,0.00051999,4]
[320699658,1711510565889,18403.68206941,0.0002,2]
[320699659,1711510645962,7927.26472898,0.0002,2]
[320699660,1711510712238,860.6805681,0.0002,2]
[320699661,1711510723881,441.01478668,0.0002,2]
[320699662,1711510725901,1030.89430215,0.0002,2]
[320699663,1711510734190,794.41890535,0.0002,2]
[320699664,1711510741855,405.11159029,0.0002,2]
[320699668,1711511200819,194.453352,0.0002,10]
[320699669,1711511234179,-570.65394093,0.00034545,4]
[320699670,1711511234203,-155.0,0.00034546,4]
[320699671,1711511234224,-3146.75385295,0.00034546,4]
[320699672,1711511234246,-150.0,0.00034548,10]
[320699673,1711511234266,-64.11966311,0.00039684,2]
[320699674,1711511246241,-236.3459447,0.00034545,2]
[320699675,1711511246262,-150.88033689,0.00039684,2]
[320699676,1711511246283,-166.10053771,0.000397,2]
[320699677,1711511246303,-496.0,0.000398,2]
[320699678,1711511246323,-166.10053764,0.000416,2]
[320699679,1711511246342,-76.49710829,0.00042,2]
[320699680,1711511364151,-505.07352502,0.000371,23]
[320699699,1711511431751,-1394.25373998,0.000371,23]
[320699700,1711511431762,-426.86910064,0.00042,2]
[320699701,1711511431809,-686.21379107,0.00042,2]
[320699702,1711511431819,-166.10053764,0.000435,2]
[320699703,1711511431828,-166.10053764,0.000454,2]
[320699704,1711511431838,-715.75103618,0.0004633,4]
[320699705,1711511431847,-171.8,0.00046569,2]
[320699706,1711511431857,-180.98960819,0.00046821,30]
[320699707,1711511431867,-250.0,0.00047,60]
[320699708,1711511431876,-437.43012757,0.00047247,2]
[320699709,1711511437644,-1362.30987243,0.00047247,2]
[320699710,1711511437654,-166.10053764,0.000473,2]
[320699711,1711511437664,-177.3592619,0.00047314,30]
[320699712,1711511437675,-250.0,0.000475,60]
[320699713,1711511437684,-154.40070091,0.00047531,30]
[320699714,1711511437693,-3242.53,0.00047553,2]
[320699715,1711511437703,-8510.33,0.00047616,2]
[320699716,1711511437712,-680.0,0.00047661,2]
[320699717,1711511437723,-250.0,0.00047698,110]
[320699718,1711511437733,-250.0,0.00048,60]
[320699719,1711511437743,-169.86339945,0.00048145,30]
[320699720,1711511437752,-155.09633978,0.00048327,30]
[320699721,1711511437763,-250.0,0.00048486,120]
[320699722,1711511437774,-250.0,0.000485,60]
[320699723,1711511437786,-150.0,0.00048524,4]
[320699724,1711511437806,-6166.3,0.00048679,120]
[320699725,1711511437822,-1000.0,0.00048711,120]
[320699726,1711511437838,-155.4149133,0.00048718,30]
[320699728,1711511437856,-3104.66,0.00048754,2]
[320699730,1711511437873,-1000.0,0.00048786,2]
[320699732,1711511437888,-9852.42,0.00048787,2]
[320699733,1711511437904,-879.44517778,0.00048797,2]
[320699735,1711511437921,-536.0,0.00048798,10]
[320699737,1711511437934,-200.0,0.00048798,10]
[320699738,1711511437951,-200.0,0.00048798,10]
[320699740,1711511437967,-200.0,0.00048798,10]
[320699741,1711511437986,-200.0,0.00048798,10]
[320699742,1711511438002,-200.0,0.00048798,10]
[320699744,1711511438019,-200.0,0.00048798,10]
[320699745,1711511438037,-200.0,0.00048798,10]
[320699746,1711511438052,-200.0,0.00048798,10]
[320699747,1711511438063,-200.0,0.00048798,10]
[320699749,1711511438079,-200.0,0.00048798,10]
[320699750,1711511438094,-200.0,0.00048798,10]
[320699751,1711511438106,-200.0,0.00048798,10]
[320699752,1711511438119,-200.0,0.00048798,10]
[320699753,1711511438133,-357.0,0.00048798,10]
[320699754,1711511438147,-169.86339945,0.00048809,30]
[320699755,1711511438160,-171.8,0.00048832,2]
[320699756,1711511438174,-250.0,0.00049,60]
[320699757,1711511438189,-320.0,0.0004906,2]
[320699758,1711511438203,-166.10053764,0.000492,2]
[320699759,1711511438217,-6806.67711511,0.00049233,2]
[320699760,1711511438230,-1348.20651473,0.00049236,14]
[320699761,1711511438244,-886.87938371,0.00049236,2]
[320699762,1711511438257,-177.62797555,0.00049236,2]
[320699763,1711511438271,-1256.27889819,0.000493,2]
[320699764,1711511438284,-1462.83,0.00049322,2]
[320699765,1711511438297,-183.13737392,0.00049324,2]
[320699766,1711511438311,-1462.83,0.00049324,2]
[320699767,1711511438324,-1462.83,0.00049324,2]
[320699768,1711511438338,-501.44,0.00049331,15]
[320699769,1711511438351,-501.44,0.00049331,15]
[320699770,1711511438364,-501.44,0.00049331,15]
[320699771,1711511438378,-501.44,0.00049331,15]
[320699772,1711511438391,-501.44,0.00049331,15]
[320699773,1711511438404,-501.44,0.00049331,15]
[320699774,1711511438417,-501.44,0.00049331,15]
[320699775,1711511438432,-501.44,0.00049331,15]
[320699776,1711511438446,-501.44,0.00049331,15]
[320699777,1711511438461,-500.0,0.00049332,14]
[320699778,1711511438476,-220000.0,0.00049332,120]
[320699779,1711511438490,-155.0,0.00049333,4]
[320699780,1711511438503,-282.99175982,0.00049333,4]
[320699781,1711511438517,-1346.46288533,0.00049333,4]
[320699782,1711511438530,-500000.0,0.00049334,4]
[320699783,1711511438544,-188.62,0.00049336,120]
[320699784,1711511438558,-951.03388435,0.00049399,4]
[320699785,1711511438571,-250.0,0.000495,60]
[320699786,1711511438585,-180.98960819,0.0004963,30]
[320699787,1711511438598,-155.85183215,0.00049748,30]
[320699788,1711511438611,-166.94073982,0.00049971,30]
[320699789,1711511438624,-1799.74,0.00049987,2]
[320699790,1711511438636,-381.53234413,0.00049993,2]
[320699791,1711511438650,-2479.0,0.0005,9]
[320699792,1711511438663,-212.5,0.00050093,120]
[320699793,1711511438679,-250.0,0.000503,120]
[320699794,1711511438693,-250.0,0.000507,120]
[320699795,1711511438706,-6806.6771151,0.00050787,2]
[320699796,1711511438719,-886.87938363,0.00050816,2]
[320699797,1711511438732,-159.00245231,0.000509,120]
[320699798,1711511438745,-159.00245231,0.000509,120]
[320699799,1711511438758,-159.00245231,0.000509,120]
[320699800,1711511438772,-171.8,0.00051096,2]
[320699801,1711511438787,-166.10053764,0.000511,2]
[320699802,1711511438802,-381.53234412,0.00051172,2]
[320699803,1711511438815,-1348.2065147,0.0005119,14]
[320699804,1711511438825,-152.0004068,0.00051192,60]
[320699805,1711511438834,-250.0,0.000513,120]
[320699806,1711511438844,-2032.0,0.00051361,117]
[320699807,1711511438853,-680.0982,0.0005138,2]
[320699808,1711511438862,-2779.4585,0.0005138,2]
[320699809,1711511438871,-2500.0,0.0005138,2]
[320699810,1711511439077,-6055.98565,0.00051388,2]
[320699811,1711511439098,-725.5378646,0.00051397,4]
[320699812,1711511439108,-1462.83,0.00051469,2]
[320699813,1711511439118,-154.95007226,0.00051471,60]
[320699814,1711511439128,-155.06460703,0.00051477,4]
[320699815,1711511439138,-1000.0,0.00051479,2]
[320699816,1711511439147,-69424.84817042,0.00051479,7]
[320699817,1711511439156,-501.44,0.00051479,15]
[320699818,1711511439165,-105947.36645267,0.0005148,2]
[320699819,1711511439175,-2126.15574,0.0005148,56]
[320699820,1711511439185,-151.032712,0.00051498,99]
[320699821,1711511439195,-159.00245231,0.00051603,120]
[320699822,1711511439204,-250.0,0.000517,120]
[320699823,1711511439214,-151.032712,0.00051798,97]
[320699824,1711511439223,-1462.83,0.00051889,2]
[320699825,1711511439233,-3862.7843319,0.00051898,30]
[320699826,1711511439242,-1781.08583272,0.00051898,4]
[320699827,1711511439251,-3068.3600586,0.00051898,40]
[320699828,1711511439260,-857.94436994,0.00051898,10]
[320699829,1711511439270,-151.032712,0.00051898,96]
[320699830,1711511439279,-5429.32872914,0.00051898,2]
[320699831,1711511439289,-8747.433,0.00051899,2]
[320699832,1711511439299,-29239.7269,0.00051899,2]
[320699833,1711511439308,-180.98960819,0.00051934,60]
[320699834,1711511439318,-4583.65653783,0.00051951,4]
[320699835,1711511439327,-9907.6053949,0.00051992,2]
[320699836,1711511439336,-351.1568654,0.00051992,2]
[320699837,1711511439345,-1686.633326,0.00051992,2]
[320699838,1711511439355,-1058.38820736,0.00051995,30]
[320699839,1711511439364,-236.43601488,0.00051996,4]
[320699840,1711511439373,-155.55431879,0.00051997,4]
[320699841,1711511439382,-4698.30273254,0.00051997,4]
[320699842,1711511439391,-160.44483625,0.00051997,4]
[320699843,1711511439401,-155.57058297,0.00051997,4]
[320699844,1711511439411,-5000.0,0.00051997,30]
[320699845,1711511439421,-296.75080968,0.00051997,4]
[320699846,1711511439430,-786.72341123,0.00051998,4]
[320699847,1711511439440,-155.3126911,0.00051998,4]
[320699848,1711511439449,-409.37227484,0.00051998,2]
[320699849,1711511439459,-682.79202095,0.00051998,4]
[320699850,1711511439468,-376.18558384,0.00051998,4]
[320699851,1711511439477,-237.83856054,0.00051998,2]
[320699852,1711511439488,-165.86823274,0.00051998,4]
[320699853,1711511439498,-1965.43352283,0.00051998,4]
[320699854,1711511439508,-3361.26648447,0.00051998,4]
[320699855,1711511439517,-155.0,0.00051998,4]
[320699856,1711511439527,-400.0,0.00051998,2]
[320699857,1711511439536,-374.48282216,0.00051998,4]
[320699858,1711511439546,-500.0,0.00051998,2]
[320699859,1711511439556,-787.72344023,0.00051998,4]
[320699860,1711511439565,-5355.39539731,0.00051998,4]
[320699861,1711511439574,-2000.0,0.00051999,15]
[320699862,1711511439583,-2000.0,0.00051999,15]
[320699863,1711511439592,-2000.0,0.00052,120]
[320699864,1711511439601,-250.0,0.00052,120]
[320699865,1711511439611,-3407.24090942,0.00052,120]
[320699866,1711511439620,-25467.43091614,0.00052,120]
[320699867,1711511439629,-181.38,0.00052,120]
[320699868,1711511439638,-8549.6843546,0.00052123,2]
[320699869,1711511439647,-154.95007228,0.00052159,60]
[320699870,1711511439656,-1426.41873102,0.00052203,2]
[320699871,1711511439665,-163.3,0.00052243,2]
[320699872,1711511439679,-250.0,0.000523,120]
[320699873,1711511439688,-381.53234412,0.00052351,2]
[320699874,1711511439698,-159.00245231,0.00052392,120]
[320699875,1711511439708,-886.87938363,0.00052397,2]
[320699876,1711511439718,-151.032712,0.00052498,100]
[320699877,1711511439727,-250.0,0.000525,120]
[320699878,1711511439737,-2000.0,0.00052519,15]
[320699879,1711511439747,-2000.0,0.00052519,15]
[320699880,1711511439758,-11849.0,0.000526,120]
[320699881,1711511439768,-250.0,0.000527,120]
[320699882,1711511439777,-1799.74,0.00052727,2]
[320699883,1711511439787,-151.032712,0.00052798,98]
[320699884,1711511439798,-180.98960819,0.00052962,60]
[320699885,1711511439808,-250.0,0.00053,120]
[320699886,1711511439820,-166.10053764,0.00053,2]
[320699887,1711511439830,-2000.0,0.00053044,15]
[320699888,1711511439841,-2000.0,0.00053044,15]
[320699889,1711511439851,-155.09633978,0.00053126,60]
[320699890,1711511439861,-1348.2065147,0.00053144,14]
[320699891,1711511439872,-159.00245231,0.00053182,120]
[320699892,1711511439882,-518.0,0.00053339,7]
[320699893,1711511439892,-171.8,0.0005336,2]
[320699894,1711511439902,-198.07586876,0.00053402,60]
[320699895,1711511439912,-152.00040682,0.00053464,60]
[320699896,1711511439929,-151.032711,0.00053498,106]
[320699897,1711511439938,-250.0,0.000535,120]
[320699898,1711511439948,-200.0,0.0005351,30]
[320699899,1711511439958,-800.0,0.0005351,30]
[320699900,1711511439973,-381.53234412,0.0005353,2]
[320699901,1711511439983,-2000.0,0.00053575,15]
[320699902,1711511439993,-2000.0,0.00053575,15]
[320699903,1711511440003,-680.0,0.00053619,120]
[320699904,1711511440013,-169.86339945,0.00053655,60]
[320699905,1711511440022,-988.0,0.00053671,120]
[320699906,1711511440032,-639.0,0.00053699,120]
[320699907,1711511440042,-10000.0,0.00053737,30]
[320699908,1711511440052,-155.09633978,0.00053754,60]
[320699909,1711511440062,-6828.2017,0.00053859,2]
[320699910,1711511440071,-159.00245231,0.00053971,120]
[320699911,1711511440080,-886.87938363,0.00053977,2]
[320699912,1711511440089,-2126.15574,0.0005398,68]
[320699913,1711511440099,-1462.83,0.0005399,2]
[320699914,1711511440109,-250.0,0.00054,120]
[320699915,1711511440119,-44647.7587179,0.00054,120]
[320699919,1711511440174,-275.52,0.00054,120]
[320699920,1711511440185,-932.0,0.00054,120]
[320699922,1711511440196,-1892.85669658,0.00054,120]
[320699924,1711511440208,-1000.52466,0.00054,120]
[320699926,1711511440220,-1001.25375,0.00054,120]
[320699929,1711511440239,-1024.42347234,0.00054,120]
[320699932,1711511440264,-1012.012745,0.00054,120]
[320699934,1711511440279,-350.86635327,0.00054,120]
[320699937,1711511440299,-598.58339864,0.00054,120]
[320699939,1711511440310,-968.24542313,0.00054,120]
[320699953,1711511440479,-2477.63534256,0.00054,120]
[320699954,1711511440491,-4019.09127962,0.00054,120]
[320699955,1711511440502,-315.6,0.00054,120]
[320699956,1711511440513,-292.734547,0.00054,120]
[320699957,1711511440524,-337.1930797,0.00054,120]
[320699958,1711511443109,-270.75686148,0.00049323,5]
[320699959,1711511443119,-1247.95766396,0.0005234,2]
[320699960,1711511443156,-5558.71945114,0.0005234,2]
[320699961,1711511443166,-4099.78054886,0.00052605,30]
[320699962,1711511443179,-424.115311,0.00052605,30]
[320700148,1711511445753,-1246.58900404,0.00052605,30]
[320700152,1711511445869,-1077.77157378,0.00052605,30]
[320700153,1711511445912,-1199.60626325,0.00052605,30]
[320700154,1711511445981,-1952.13729907,0.00052605,30]
[320700155,1711511445991,-10000.0,0.00052605,30]
[320700156,1711511446001,-6806.6771151,0.00053894,2]
[320700157,1711511446011,-4982.87953374,0.00054,120]
[320700158,1711511470645,1026850.19285973,0.00018,2]
[320700162,1711511640640,185829.91771399,0.00018,2]
[320700202,1711512447137,-350.0,0.00025,3]
[320700203,1711512447159,-1222.09289792,0.00029998,2]
[320700204,1711512447178,-163.09950255,0.00029998,2]
[320700205,1711512453102,-963.17785711,0.00029998,2]
[320700206,1711512453121,-165.09636315,0.00029998,2]
[320700207,1711512453142,-238.21161307,0.00029998,2]
[320700208,1711512453162,-260.63176904,0.00029998,2]
[320700209,1711512453183,-332.87392543,0.00029998,2]
[320700210,1711512453203,-406.08005128,0.00029998,2]
[320700211,1711512453225,-155.45223297,0.00029998,2]
[320700212,1711512453249,-784.19077975,0.00029998,2]
[320700213,1711512453269,-2662.50309193,0.00029998,2]
[320700230,1711512631919,-173.09146145,0.00029998,2]
[320700231,1711512631929,-586.65884076,0.00029998,2]
[320700232,1711512632063,-1801.38587467,0.00029998,2]
[320700256,1711512637948,-0.00269221,0.00029998,2]
[320700257,1711512637976,-678.0353837,0.00029998,2]
[320700258,1711512637988,-155.19389774,0.00029999,2]
[320700259,1711512637998,-158589.78183864,0.0003,2]
[320700260,1711512638007,-532.12763025,0.00037654,2]
[320700261,1711512638017,-4084.00626906,0.00037754,2]
[320700262,1711512638029,-166.10053764,0.00037954,2]
[320700263,1711512638040,-526.62,0.00038244,2]
[320700264,1711512638051,-79433.41145443,0.00038254,2]
[320700265,1711512638061,-4019.0357295,0.00038254,2]
[320700266,1711512638070,-5188.54441345,0.00038254,2]
[320700267,1711512638079,-37748.36633507,0.00038254,2]
[320700268,1711512638088,-2000.88997968,0.0004,2]
[320700269,1711512638097,-532.12763017,0.00040034,2]
[320700270,1711512638107,-4084.00626906,0.00040123,2]
[320700271,1711512638116,-4174.23,0.00040212,18]
[320700272,1711512638126,-156.63,0.00041909,2]
[320700273,1711512638136,-532.12763017,0.00042415,2]
[320700274,1711512638145,-4084.00626906,0.00042493,2]
[320700275,1711512638154,-2516.10789231,0.00044152,60]
[320700276,1711512638164,-156.63,0.00044298,2]
[320700277,1711512638175,-11900.0,0.00044319,2]
[320700278,1711512638185,-1000.0,0.00044494,2]
[320700279,1711512638195,-532.12763017,0.00044795,2]
[320700280,1711512638205,-250.0,0.0004485,110]
[320700281,1711512638216,-4084.00626906,0.00044862,2]
[320700282,1711512638227,-5138.58,0.00044924,120]
[320700283,1711512638237,-526.62,0.0004599,2]
[320700284,1711512638246,-526.62,0.0004599,2]
[320700285,1711512638254,-526.62,0.0004599,2]
[320700286,1711512638263,-207886.82199141,0.00046,4]
[320700287,1711512638275,-292113.17800859,0.00046,4]
[320700288,1711512638284,-186.86166107,0.00046053,2]
[320700289,1711512638294,-169.86339945,0.00046439,30]
[320700290,1711512638303,-156.63,0.00046688,2]
[320700291,1711512638312,-155.09633978,0.00046893,30]
[320700293,1711512638322,-821.38,0.00047057,2]
[320700294,1711512638332,-532.12763017,0.00047176,2]
[320700295,1711512638343,-4084.00626906,0.00047231,2]
[320700296,1711512638352,-212.5,0.0004741,120]
[320700297,1711512638361,-609.27406,0.00047945,17]
[320700298,1711512638372,-150.41241522,0.00048,2]
[320700299,1711512638381,-842.62907168,0.00048413,13]
[320700300,1711512638390,-1016.0,0.000487,117]
[320700301,1711512638399,-1009.3926,0.0004878,120]
[320700302,1711512638408,-15459.97742854,0.000488,2]
[320700303,1711512638418,-186.86166107,0.000488,2]
[320700304,1711512638428,-11434.09935678,0.000488,25]
[320700305,1711512638437,-173.11977842,0.000488,2]
[320700306,1711512638445,-359.28899248,0.000488,2]